fUSD/lending_fUSD_20240628
["ID","MTS","AMOUNT","RATE_DAILY","PERIOD"]
[330516281,1719551432284,-800.0,0.00013863,2]
[330516283,1719551432293,-800.0,0.00013863,2]
[330516285,1719551432303,-2500.0,0.0001389,2]
[330516286,1719551432315,-800.0,0.0001389,2]
[330516288,1719551432329,-1000.0,0.00013899,2]
[330516290,1719551432338,-1000.0,0.00013899,2]
[330516291,1719551432347,-720.44278656,0.00013899,2]
[330516293,1719551432358,-1000.0,0.000139,2]
[330516295,1719551432366,-153.81122333,0.000139,2]
[330516296,1719551432375,-2495.10866876,0.000139,2]
[330516298,1719551432385,-1007.0,0.000139,2]
[330516300,1719551432395,-150.99,0.000139,2]
[330516302,1719551432405,-1000.0,0.000139,2]
[330516303,1719551432415,-173.5,0.00013902,2]
[330516305,1719551432424,-150.99,0.00013902,2]
[330516307,1719551432433,-800.0,0.00013918,2]
[330516308,1719551432442,-800.0,0.00013918,2]
[330516310,1719551432451,-2187.40425656,0.00013927,2]
[330516312,1719551432460,-787.83375745,0.00013927,2]
[330516313,1719551432469,-321.45653034,0.00013927,2]
[330516314,1719551432478,-197.59758405,0.00013927,2]
[330516315,1719551432488,-166.74688634,0.00013927,2]
[330516316,1719551432497,-467.54725925,0.00013927,2]
[330516317,1719551432507,-530.38,0.0001393,2]
[330516318,1719551432516,-155.69,0.00013933,2]
[330516319,1719551432525,-176.92308186,0.00013943,2]
[330516320,1719551432534,-800.0,0.00013973,2]
[330516321,1719551432544,-800.0,0.00013973,2]
[330516322,1719551432553,-209.45044981,0.00013989,2]
[330516323,1719551432562,-176.45216287,0.00013989,2]
[330516324,1719551432571,-155.76801157,0.00013989,2]
[330516325,1719551432580,-462.48568697,0.00013989,2]
[330516326,1719551432589,-295.11886762,0.00013989,2]
[330516327,1719551432598,-13739.71320654,0.0001399,2]
[330516328,1719551432608,-475.10495739,0.00013999,2]
[330516329,1719551432617,-155.0,0.00013999,2]
[330516330,1719551432626,-217.93104005,0.00013999,2]
[330516331,1719551432637,-269.32381913,0.00013999,2]
[330516332,1719551432646,-346.07679139,0.00013999,2]
[330516333,1719551432655,-209.39162848,0.00013999,2]
[330516334,1719551432664,-155.21284534,0.00013999,2]
[330516335,1719551432674,-173.15431518,0.00013999,2]
[330516336,1719551432683,-302.45335247,0.00013999,2]
[330516337,1719551432692,-155.3436652,0.00013999,2]
[330516338,1719551432701,-35851.28193275,0.00014,2]
[330516339,1719551432713,-2719.05049637,0.00014,2]
[330516340,1719551432748,-315.0,0.00014,2]
[330516341,1719551432759,-1395.41908041,0.00014,2]
[330516342,1719551432771,-966.85917533,0.00014,2]
[330516343,1719551432782,-521.97670531,0.00014,2]
[330516344,1719551432793,-12611.04820383,0.00014,2]
[330516345,1719551432810,-7800.69533894,0.00014,2]
[330516346,1719551432831,-1381.95190557,0.00014,2]
[330516347,1719551432842,-431.18512968,0.00014,2]
[330516348,1719551432854,-679.83163208,0.00014,2]
[330516349,1719551432866,-422.76314946,0.00014,2]
[330516350,1719551432877,-2478.29101073,0.00014,2]
[330516351,1719551432890,-849.96717983,0.00014,2]
[330516352,1719551432901,-650.23905597,0.00014,2]
[330516353,1719551432931,-2255.22006343,0.00014,2]
[330516354,1719551432973,-1703.71231783,0.00014,2]
[330516355,1719551432985,-1062.65487109,0.00014,2]
[330516356,1719551432996,-17994.43940248,0.00014,2]
[330516357,1719551433008,-1566.08125396,0.00014,2]
[330516358,1719551433020,-1272.24,0.00014,2]
[330516359,1719551433031,-3210.85387545,0.00014,2]
[330516360,1719551433043,-1904.50813767,0.00014,2]
[330516361,1719551433063,-860.35582076,0.00014,2]
[330516362,1719551433075,-411.93410074,0.00014,2]
[330516363,1719551433086,-747.78690057,0.00014,2]
[330516364,1719551433098,-560.2023371,0.00014,2]
[330516365,1719551433109,-10266.23976404,0.00014,2]
[330516366,1719551433121,-351.68374011,0.00014,2]
[330516367,1719551433133,-569.99999994,0.00014,2]
[330516368,1719551433147,-351.899999,0.00014,2]
[330516369,1719551433159,-20906.75793379,0.00014,2]
[330516370,1719551433170,-474.46635641,0.00014,2]
[330516371,1719551433204,-447.53187127,0.00014,2]
[330516372,1719551433216,-9741.80218521,0.00014,2]
[330516373,1719551433228,-809260.79331609,0.00014,2]
[330516382,1719551438523,-155.10723618,0.00013574,2]
[330516383,1719551438532,-199.05692517,0.00013989,2]
[330516384,1719551438542,-159.66137953,0.00013999,2]
[330516385,1719551438551,-548.13004565,0.00014,2]
[330516386,1719551438563,-536.3194009,0.00014,2]
[330516387,1719551438574,-2072.10473281,0.00014,2]
[330516388,1719551438585,-494.72760592,0.00014,2]
[330516389,1719551438596,-1651.94935281,0.00014,2]
[330516390,1719551438622,-2604.69232305,0.00014,2]
[330516391,1719551438634,-1392.37172164,0.00014,2]
[330516392,1719551438648,-4438.82323493,0.00014,2]
[330516393,1719551438659,-2313.6309411,0.00014,2]
[330516394,1719551438670,-3816.05315889,0.00014,2]
[330516395,1719551438706,-6793.64778067,0.00014,2]
[330516396,1719551438717,-1713.54151467,0.00014,2]
[330516397,1719551438728,-1236.89030779,0.00014,2]
[330516398,1719551438739,-1272.39642856,0.00014,2]
[330516399,1719551438750,-17947.67771686,0.00014,2]
[330516400,1719551438760,-785.23100942,0.00014,2]
[330516401,1719551438788,-1145.08013776,0.00014,2]
[330516402,1719551438799,-254.99999,0.00014,2]
[330516403,1719551438811,-1275.36257132,0.00014,2]
[330516404,1719551438822,-4440.864085,0.00014,2]
[330516405,1719551438833,-3302.22791311,0.00014,2]
[330516406,1719551438888,-290.31856456,0.00014,2]
[330516407,1719551439856,-269.88227111,0.00013999,2]
[330516408,1719551439866,-82068.60666389,0.00014,2]
[330516411,1719551441566,-470.37875795,0.00014,2]
[330516412,1719551441696,-459.45105296,0.00014,2]
[330516413,1719551441830,-1179.86580013,0.00014,2]
[330516414,1719551441850,-489.59093316,0.00014,2]
[330516415,1719551441866,-583.612171,0.00014,2]
[330516416,1719551441883,-753.000003,0.00014,2]
[330516417,1719551441902,-435.67082283,0.00014,2]
[330516418,1719551441918,-50777.57373107,0.00014,2]
[330516517,1719551443007,-538266.71151897,0.00014,2]
[330516518,1719551443154,-660.33561149,0.00014,2]
[330516519,1719551443184,-269.50157283,0.00014,2]
[330516520,1719551446309,-196.20443442,0.00013999,2]
[330516521,1719551446319,-7187.81412558,0.00014,2]
[330516522,1719551446335,-2580.0,0.00014,2]
[330516529,1719551613159,3072.15423039,0.00011199,2]
[330516530,1719551630032,759.11,0.00011393,2]
[330516531,1719551655960,300.21600683,0.00011393,2]
[330516532,1719551871157,168.69889868,0.00011199,2]
[330516533,1719551911035,213.4977548,0.00011199,2]
[330516534,1719551926937,3068.89013181,0.00011199,2]
[330516535,1719551994360,171.68155615,0.00014,30]
[330516536,1719552193058,1069.82113378,0.00011199,2]
[330516537,1719552241906,500.0,0.00011756,2]
[330516538,1719552250137,158.95381059,0.00011199,2]
[330516539,1719552256687,266.80651301,0.00011199,2]
[330516540,1719552267855,155.0,0.00011199,2]
[330516541,1719552274815,500.0,0.00011756,2]
[330516542,1719552296729,721.15,0.00010778,2]
[330516543,1719552312813,519.86065789,0.00011199,2]
[330516544,1719552327141,365.78781787,0.00011199,2]
[330516546,1719552372955,660.33561149,0.00011199,2]
[330516571,1719552467789,371.13047645,0.00011199,2]
[330516572,1719552479518,3106.94505996,0.00011199,2]
[330516575,1719552604091,591.14181549,0.00011199,2]
[330516581,1719552632157,-412.85903943,0.00012273,2]
[330516582,1719552632168,-101.43331728,0.00012578,2]
[330516583,1719552632231,-398.56668272,0.00012578,2]
[330516584,1719552632243,-250.0,0.00012587,2]
[330516585,1719552632252,-169.87,0.00012738,2]
[330516586,1719552632261,-494.59,0.00012797,2]
[330516587,1719552632272,-169.41,0.00012974,2]
[330516588,1719552632281,-3851.6,0.00013014,2]
[330516589,1719552632291,-721.15,0.00013042,2]
[330516590,1719552632302,-250.0,0.00013071,2]
[330516591,1719552632312,-1187.7,0.00013103,2]
[330516592,1719552632322,-743.38,0.00013103,2]
[330516593,1719552632332,-499.99,0.00013103,2]
[330516594,1719552632342,-150.0,0.00013103,2]
[330516595,1719552632352,-155.69,0.00013104,2]
[330516596,1719552632362,-299.99,0.00013104,2]
[330516597,1719552632371,-17443.98,0.00013104,2]
[330516598,1719552632381,-1400.0,0.00013126,2]
[330516599,1719552632391,-337.54,0.00013195,2]
[330516600,1719552632400,-171.43,0.0001331,2]
[330516601,1719552632409,-500.0,0.000134,2]
[330516602,1719552632418,-500.0,0.000134,2]
[330516603,1719552632428,-1269.98169867,0.00013472,2]
[330516604,1719552632437,-386.21,0.00013516,2]
[330516605,1719552632446,-1000.0,0.00013516,2]
[330516606,1719552632456,-1263.2464365,0.00013516,2]
[330516607,1719552632465,-1365.19794682,0.00013516,2]
[330516608,1719552632477,-331.5,0.00013516,2]
[330516609,1719552632498,-502.15929153,0.00013516,2]
[330516610,1719552632508,-182.17,0.00013699,2]
[330516611,1719552632518,-550.1,0.00013699,2]
[330516612,1719552632528,-955.85753929,0.00013736,2]
[330516613,1719552632537,-254.05078128,0.00013802,2]
[330516614,1719552632548,-158.76638733,0.00013849,2]
[330516615,1719552632557,-166.35300196,0.00013849,2]
[330516616,1719552632568,-155.54031882,0.00013849,2]
[330516617,1719552632578,-955.4311624,0.00013859,2]
[330516618,1719552632590,-44.5688376,0.00013859,2]
[330516619,1719552632600,-2243.27583,0.0001386,2]
[330516620,1719552632611,-1000.0,0.00013888,2]
[330516621,1719552632620,-720.44278656,0.00013889,2]
[330516622,1719552632630,-155.0,0.00013889,2]
[330516623,1719552632644,-248.59,0.0001389,3]
[330516624,1719552632654,-544.27708318,0.00013899,2]
[330516625,1719552632664,-491.61691634,0.00013899,2]
[330516626,1719552632673,-155.77908196,0.00013899,2]
[330516627,1719552632683,-269.30966923,0.00013899,2]
[330516628,1719552632692,-1000.0,0.000139,2]
[330516629,1719552632702,-1138.41397923,0.000139,2]
[330516631,1719552632714,-1951.50852077,0.000139,2]
[330516633,1719552632723,-4292.86823694,0.000139,2]
[330516634,1719552632733,-16348.27604082,0.000139,2]
[330516635,1719552632744,-2614.08125678,0.000139,2]
[330516636,1719552632789,-297.86256585,0.000139,2]
[330516637,1719552632824,-8660.09963767,0.000139,2]
[330516638,1719552632836,-409.12146104,0.000139,2]
[330516639,1719552632848,-2603.71306986,0.000139,2]
[330516640,1719552632862,-943.26744094,0.000139,2]
[330516641,1719552632873,-574.32971375,0.000139,2]
[330516642,1719552632884,-1852.97114235,0.000139,2]
[330516644,1719552638223,-3265.55644233,0.000139,2]
[330516645,1719552638235,-534.67786524,0.000139,2]
[330516646,1719552638247,-956.99378914,0.000139,2]
[330516647,1719552638258,-295.82028696,0.000139,2]
[330516648,1719552638272,-472.08952172,0.000139,2]
[330516649,1719552638284,-1567.16976555,0.000139,2]
[330516650,1719552638293,-176.92308185,0.000139,2]
[330516651,1719552638303,-323.76795122,0.000139,2]
[330516652,1719552638315,-8986.15228466,0.000139,2]
[330516653,1719552638349,-1113.46114593,0.000139,2]
[330516654,1719552638368,-29423.28434707,0.000139,2]
[330516655,1719552638380,-6042.88438236,0.000139,2]
[330516656,1719552638392,-269.49698536,0.000139,2]
[330516657,1719552638404,-1069.37098182,0.000139,2]
[330516658,1719552638415,-4936.4916975,0.000139,2]
[330516659,1719552638427,-4301.317335,0.000139,2]
[330516660,1719552638438,-548.096,0.000139,2]
[330516661,1719552638449,-584.51193924,0.000139,2]
[330516662,1719552638462,-251.60714365,0.000139,2]
[330516663,1719552638474,-421.399227,0.000139,2]
[330516664,1719552638486,-2644.17619719,0.000139,2]
[330516665,1719552638498,-1811.85389002,0.000139,2]
[330516666,1719552638510,-7840.15579188,0.000139,2]
[330516667,1719552638521,-4039.50613477,0.000139,2]
[330516668,1719552638546,-450.52814202,0.000139,2]
[330516669,1719552638558,-264.54053448,0.000139,2]
[330516670,1719552638570,-1773.35208208,0.000139,2]
[330516671,1719552638582,-813.90015,0.000139,2]
[330516672,1719552638627,-7405.18999584,0.000139,2]
[330516673,1719552638639,-8211.25435294,0.000139,2]
[330516674,1719552638651,-6561.3347441,0.000139,2]
[330516675,1719552638663,-82039.27032354,0.000139,2]
[330516676,1719552638675,-332.57131004,0.000139,2]
[330516695,1719552641548,-2818.72205287,0.000139,2]
[330516696,1719552641560,-3896.57759999,0.000139,2]
[330516697,1719552641572,-283224.70166266,0.000139,2]
[330516698,1719552641584,-6521.42907036,0.000139,2]
[330516699,1719552641655,-52506.90400841,0.000139,2]
[330516700,1719552641665,-3214.9432028,0.000139,2]
[330516701,1719552641675,-172.94,0.00013931,2]
[330516702,1719552641685,-1000.0,0.00013944,2]
[330516703,1719552641695,-800.0,0.00013945,2]
[330516704,1719552641704,-800.0,0.00013945,2]
[330516705,1719552641714,-1400.0,0.00013948,2]
[330516706,1719552641724,-800.0,0.00013973,2]
[330516707,1719552641734,-169.62100392,0.00013973,2]
[330516708,1719552641746,-630.37899608,0.00013973,2]
[330516709,1719552641756,-800.0,0.00013973,2]
[330516710,1719552641769,-196.0883908,0.00013989,2]
[330516711,1719552641779,-155.0,0.00013989,2]
[330516712,1719552641789,-163.5876468,0.00013989,2]
[330516713,1719552641799,-475.10495739,0.00013989,2]
[330516714,1719552641809,-1483.56792538,0.00013999,2]
[330516715,1719552641822,-84.07345269,0.00013999,2]
[330516716,1719552641832,-217.93104005,0.00013999,2]
[330516717,1719552641841,-241.98925564,0.00013999,2]
[330516718,1719552641851,-19.22288498,0.00013999,2]
[330516719,1719552641863,-174.8291407,0.00013999,2]
[330516720,1719552641873,-346.27609451,0.00013999,2]
[330516721,1719552641883,-4550.32506504,0.00014,2]
[330516723,1719552643297,-538266.71151897,0.00014,2]
[330516724,1719552643536,-254.05078128,0.00013759,2]
[330516725,1719552643546,-13965.94921872,0.00014,2]
[330516768,1719552646612,-367.63484947,0.00014,2]
[330516772,1719552646809,-2260.28429368,0.00014,2]
[330516775,1719552809725,258.73592772,0.00026,120]
[330516776,1719552899016,711.39,0.00011662,2]
[330516779,1719553288389,-5024.10181814,0.0001305,2]
[330516780,1719553288412,-300.0,0.00013125,2]
[330516781,1719553288435,-500.0,0.00013126,2]
[330516782,1719553288456,-1200.0,0.00013126,2]
[330516783,1719553288478,-500.0,0.00013126,2]
[330516784,1719553288503,-155.0,0.00013128,2]
[330516785,1719553288527,-220.04917886,0.00013128,2]
[330516786,1719553288549,-250.0,0.00013373,2]
[330516787,1719553288569,-344.95,0.00013373,2]
[330516788,1719553288590,-488.82,0.00013518,2]
[330516789,1719553288611,-165.13,0.00013569,2]
[330516790,1719553288633,-261.61,0.00013699,2]
[330516791,1719553288653,-424.23814065,0.00013702,2]
[330516792,1719553288676,-2252.8828,0.000138,2]
[330516793,1719553288695,-1494.24038237,0.00013849,2]
[330516794,1719553288715,-150.99,0.00013899,2]
[330516795,1719553288736,-5511.9334,0.000139,2]
[330516796,1719553288759,-1860.323,0.000139,2]
[330516797,1719553288779,-591.69683969,0.000139,2]
[330516798,1719553288798,-197.59758404,0.000139,2]
[330516799,1719553288820,-3862.90350015,0.000139,2]
[330516800,1719553288844,-3935.12921725,0.000139,2]
[330516801,1719553288866,-165.13,0.00013923,2]
[330516802,1719553288887,-711.39,0.00013926,2]
[330516803,1719553288907,-1200.0,0.00013948,2]
[330516804,1719553288927,-2752.73,0.00013982,2]
[330516805,1719553288951,-1000.0,0.00013999,2]
[330516806,1719553288970,-150.01,0.00013999,2]
[330516807,1719553288990,-5576.98430565,0.00013999,2]
[330516808,1719553289013,-458752.1598332,0.00014,2]
[330516836,1719553770791,200.0,0.00025,60]
[330516853,1719553832618,-640.25,0.00012694,2]
[330516854,1719553832628,-155.70234121,0.00013026,2]
[330516855,1719553832638,-468.96979027,0.00013126,2]
[330516856,1719553832650,-31.03020973,0.00013126,2]
[330516857,1719553832659,-500.0,0.00013126,2]
[330516858,1719553832670,-155.7023412,0.000138,2]
[330516859,1719553832680,-116.95930226,0.00013889,2]
[330516860,1719553832692,-136.58305623,0.00013889,2]
[330516861,1719553832701,-155.0,0.00013889,2]
[330516862,1719553832711,-150.0,0.00013899,2]
[330516863,1719553832720,-300.0,0.00013899,2]
[330516864,1719553832729,-1183.68462201,0.000139,2]
[330516865,1719553832740,-2292.92852817,0.000139,2]
[330516866,1719553832750,-2199.5048619,0.000139,2]
[330516867,1719553832760,-321.45653034,0.000139,2]
[330516868,1719553832770,-1148.37609473,0.000139,2]
[330516869,1719553832826,-601.82912919,0.000139,2]
[330516870,1719553832838,-163.77350057,0.000139,2]
[330516871,1719553832847,-180.3177108,0.00013989,2]
[330516872,1719553832858,-510.61488268,0.00013989,2]
[330516873,1719553832869,-787.72537109,0.00013989,2]
[330516874,1719553832881,-638.49582452,0.00013989,2]
[330516875,1719553832892,-468.09747962,0.00013989,2]
[330516878,1719553832905,-1395.82966313,0.00013989,2]
[330516891,1719553832961,-6661.16049636,0.00013989,2]
[330516892,1719553832970,-70225.6299247,0.00013989,2]
[330516894,1719553832980,-345.87748827,0.00013989,2]
[330516895,1719553832989,-150.01,0.00013999,2]
[330516896,1719553832998,-218.00572535,0.00013999,2]
[330516897,1719553833007,-414.73983609,0.00013999,2]
[330516898,1719553833017,-256292.63189737,0.00014,2]
[330516899,1719553833028,-912.27462891,0.00014,2]
[330516900,1719553833039,-1541.9914002,0.00014,2]
[330516902,1719553838476,-150.01,0.00013999,2]
[330516903,1719553838486,-678.31275911,0.00014,2]
[330516904,1719553838498,-1183.87510225,0.00014,2]
[330516905,1719553838509,-10230.58322603,0.00014,2]
[330516906,1719553838520,-319.71105716,0.00014,2]
[330516907,1719553838571,-1378.50137711,0.00014,2]
[330516908,1719553838632,-1670.36477379,0.00014,2]
[330516909,1719553838643,-3349.20624381,0.00014,2]
[330516910,1719553838653,-187653.90134315,0.00014,2]
[330516979,1719553843627,-169.26966654,0.00013999,2]
[330516980,1719553843636,-538097.44185243,0.00014,2]
[330516981,1719553843878,-4095.58485922,0.00014,2]
[330517011,1719553846809,-355.99679615,0.00014,2]
[330517013,1719553847178,-674.568832,0.00014,2]
[330517015,1719554517940,15000.0,0.00011199,2]
[330517016,1719554517963,8466.55681189,0.00011199,2]
[330517017,1719554577189,300.21600683,0.00011199,2]
[330517018,1719554606251,1494.24038237,0.00011199,2]
[330517020,1719554616863,1494.24038237,0.00011199,2]
[330517036,1719554978380,1494.24038237,0.00011199,2]
[330517037,1719554980836,1494.24038237,0.00011199,2]
[330517044,1719555031758,-705.32,0.00012919,2]
[330517046,1719555031772,-500.0,0.00013126,2]
[330517048,1719555031787,-250.0,0.00013138,2]
[330517049,1719555031801,-548.45,0.00013326,2]
[330517050,1719555031816,-194.06270384,0.00013398,2]
[330517051,1719555031889,-2112.79729616,0.00013398,2]
[330517052,1719555031903,-174.95111566,0.00013472,2]
[330517053,1719555031924,-1666.21666469,0.00013472,2]
[330517054,1719555031942,-357.689458,0.00013472,2]
[330517055,1719555031956,-384.1916426,0.00013516,2]
[330517056,1719555031973,-571.66589669,0.00013516,2]
[330517057,1719555031986,-291.30212659,0.00013543,2]
[330517058,1719555032002,-453.26475812,0.00013574,2]
[330517059,1719555032016,-296.71594966,0.00013574,2]
[330517060,1719555032029,-209.28,0.00013699,2]
[330517061,1719555032042,-1352.27317091,0.00013736,2]
[330517062,1719555032056,-267.38393596,0.00013758,2]
[330517063,1719555032073,-32.61606404,0.00013758,2]
[330517064,1719555032086,-150.99,0.00013759,2]
[330517065,1719555032100,-182.23709981,0.00013889,2]
[330517066,1719555032113,-150.0,0.00013899,2]
[330517067,1719555032126,-156.49923615,0.000139,2]
[330517068,1719555032213,-784.34351086,0.000139,2]
[330517069,1719555032234,-2522.06617273,0.000139,2]
[330517070,1719555032250,-7384.92556584,0.000139,2]
[330517071,1719555032266,-4130.4738439,0.000139,2]
[330517072,1719555032282,-1849.05107052,0.000139,2]
[330517073,1719555032296,-253.44832578,0.000139,2]
[330517075,1719555032473,-158.03047422,0.000139,2]
[330517076,1719555032485,-175.62575419,0.000139,2]
[330517077,1719555032499,-2730.95041728,0.000139,2]
[330517079,1719555032515,-1116.44676727,0.000139,2]
[330517080,1719555032528,-203.93691935,0.000139,2]
[330517081,1719555032542,-177.63375539,0.000139,2]
[330517082,1719555032555,-1250.0423276,0.000139,2]
[330517083,1719555032572,-567.12177962,0.000139,2]
[330517084,1719555032589,-1260.60760717,0.000139,2]
[330517085,1719555032605,-532.18961675,0.000139,2]
[330517086,1719555032618,-277.54372079,0.000139,2]
[330517087,1719555032634,-116.92083901,0.000139,2]
[330517088,1719555032646,-383.85182337,0.000139,2]
[330517089,1719555032662,-1777.41827465,0.000139,2]
[330517090,1719555032675,-7119.34303283,0.000139,2]
[330517091,1719555032690,-363.76455997,0.000139,2]
[330517092,1719555032707,-601.50031805,0.000139,2]
[330517093,1719555032723,-2491.79584723,0.000139,2]
[330517094,1719555032739,-532.6034,0.0001393,2]
[330517095,1719555032752,-150.264759,0.00013989,2]
[330517096,1719555032766,-2690.78644664,0.00013989,2]
[330517097,1719555032782,-932.41266438,0.00013989,2]
[330517098,1719555032798,-45350.68487518,0.00013989,2]
[330517099,1719555032811,-3441.9125622,0.00013989,2]
[330517100,1719555032824,-5665.5015941,0.00013989,2]
[330517101,1719555032837,-8165.3303528,0.00013989,2]
[330517102,1719555032850,-214.56353667,0.0001399,2]
[330517103,1719555032863,-2458.12770911,0.00013998,2]
[330517104,1719555032876,-157.9198517,0.00013999,2]
[330517105,1719555032889,-896445.20525452,0.00014,2]
[330517106,1719555032906,-829.0,0.00014,2]
[330517110,1719555037923,-155.0,0.00013574,2]
[330517111,1719555037934,-1466.3365746,0.000139,2]
[330517112,1719555037944,-915.88928686,0.00014,2]
[330517113,1719555037956,-47562.56452375,0.00014,2]
[330517114,1719555037969,-3074.2545,0.00014,2]
[330517120,1719555038115,-1973.84237263,0.00014,2]
[330517122,1719555038127,-438.29,0.00014,2]
[330517124,1719555038138,-975.42738337,0.00014,2]
[330517402,1719555040941,-1088.3299892,0.00014,2]
[330517404,1719555040956,-3258.19472346,0.00014,2]
[330517406,1719555040967,-433.65476328,0.00014,2]
[330517408,1719555040978,-358.8200025,0.00014,2]
[330517411,1719555040990,-204206.6491607,0.00014,2]
[330517416,1719555041035,-211307.5000269,0.00014,2]
[330517419,1719555041047,-681.03698708,0.00014,2]
[330517421,1719555041058,-1736.03885128,0.00014,2]
[330517423,1719555041069,-1487.92434299,0.00014,2]
[330517425,1719555041080,-387.72733961,0.00014,2]
[330517427,1719555041092,-1514.38963605,0.00014,2]
[330517440,1719555041206,-948.95544715,0.00014,2]
[330517443,1719555041218,-515.5928677,0.00014,2]
[330517445,1719555041229,-337.374,0.00014,2]
[330517458,1719555041345,-11478.26866453,0.00014,2]
[330517461,1719555041357,-9417.0797708,0.00014,2]
[330517463,1719555041368,-170976.81831178,0.00014,2]
[330517465,1719555041380,-20266.65004122,0.00014,2]
[330517467,1719555041392,-650.08112028,0.00014,2]
[330517470,1719555041404,-1191.88699385,0.00014,2]
[330517472,1719555041416,-338.79383807,0.00014,2]
[330517474,1719555041427,-9894.76560632,0.00014,2]
[330517564,1719555043023,-538097.44185243,0.00014,2]
[330517565,1719555043034,-445.1363415,0.00014,2]
[330517567,1719555043045,-252.52409342,0.00014,2]
[330517568,1719555043057,-1889.08592415,0.00014,2]
[330517569,1719555043209,-6280.06578001,0.00014,2]
[330517570,1719555043342,-3031.11647017,0.00014,2]
[330517572,1719555043355,-685.34625858,0.00014,2]
[330517606,1719555046055,-907.55990312,0.00014,2]
[330517609,1719555046068,-2089.86470127,0.00014,2]
[330517611,1719555046080,-9241.49171159,0.00014,2]
[330517613,1719555046092,-1900.443,0.00014,2]
[330517615,1719555046103,-644.05,0.00014,2]
[330517617,1719555046115,-967.0,0.00014,2]
[330517618,1719555046483,-9034.0344467,0.00014,2]
[330517619,1719555046495,-11492.58708455,0.00014,2]
[330517620,1719555046507,-355.3438941,0.00014,2]
[330517621,1719555046518,-2082.67330562,0.00014,2]
[330517622,1719555046529,-278.97054483,0.00014,2]
[330517623,1719555046541,-771.12580275,0.00014,2]
[330517624,1719555046554,-544.45108249,0.00014,2]
[330517625,1719555046565,-1033.05017563,0.00014,2]
[330517626,1719555046577,-5229.38594793,0.00014,2]
[330517627,1719555046681,-432.5,0.00014,2]
[330517628,1719555046693,-605.50432414,0.00014,2]
[330517629,1719555046706,-769.05650803,0.00014,2]
[330517630,1719555046717,-417.50900005,0.00014,2]
[330517631,1719555046728,-209561.14875256,0.00014,2]
[330517632,1719555046742,-108187.80198952,0.00014,2]
[330517633,1719555046771,-6491.74985562,0.00014,2]
[330517634,1719555046783,-2708.92720573,0.00014,2]
[330517635,1719555046794,-544.68072996,0.00014,2]
[330517636,1719555046806,-295.12565298,0.00014,2]
[330517637,1719555046817,-501.50580398,0.00014,2]
[330517638,1719555046832,-3921.13534616,0.00014,2]
[330517639,1719555046844,-2696.67068075,0.00014,2]
[330517640,1719555046856,-486.12964601,0.00014,2]
[330517641,1719555046867,-24154.30826207,0.00014,2]
[330517642,1719555046889,-18015.67538473,0.00014,2]
[330517643,1719555046901,-25816.0797369,0.00014,2]
[330517644,1719555046915,-34771.37821692,0.00014,2]
[330517645,1719555046930,-6037.72443787,0.00014,2]
[330517646,1719555046942,-16001.90295918,0.00014,2]
[330517647,1719555046954,-9670.89276934,0.00014,2]
[330517648,1719555046967,-2083.13866394,0.00014,2]
[330517649,1719555159132,762.35,0.000114,2]
[330517650,1719555198678,500.0,0.00011308,2]
[330517651,1719555198834,500.0,0.00011308,2]
[330517652,1719555198972,500.0,0.00011309,2]
[330517653,1719555199082,500.0,0.00011309,2]
[330517654,1719555210896,18666.73107048,0.00011199,2]
[330517655,1719555210920,3845.0,0.00011199,2]
[330517656,1719555211281,2184.08554989,0.00011199,2]
[330517657,1719555299058,500.0,0.00026,120]
[330517658,1719555321679,588.0,0.00025,60]
[330517659,1719555377891,150.0,0.00011199,2]
[330517660,1719555377914,150.0,0.00011199,2]
[330517661,1719555377936,186.96963135,0.00011199,2]
[330517662,1719555377957,150.0,0.00011199,2]